bitfinex/quotes_BTCUSD_20250512
["timestamp","ask_amount","ask_price","bid_price","bid_amount"]
[1747060725341,0.02138988,103140.0,103130.0,1.13929993]
[1747060725342,0.002,103140.0,103130.0,1.13929993]
[1747060725552,0.01369471,103140.0,103130.0,1.13929993]
[1747060725762,0.01369471,103140.0,103130.0,2.48098393]
[1747060725985,0.03308497,103140.0,103130.0,2.21991493]
[1747060726201,0.002,103140.0,103130.0,2.21891493]
[1747060726428,0.03208525,103140.0,103130.0,1.97213293]
[1747060726651,0.01269471,103140.0,103130.0,1.88955193]
[1747060726876,0.0223897,103140.0,103130.0,1.88955193]
[1747060727101,0.001,103140.0,103130.0,1.92005193]
[1747060727599,0.001,103140.0,103130.0,2.32089278]
[1747060728485,0.001,103140.0,103130.0,2.32289278]
[1747060728694,0.001,103140.0,103130.0,2.32189278]
[1747060728905,0.2326476,103160.0,103150.0,0.54358681]
[1747060729115,0.0193865,103160.0,103150.0,0.65882931]
[1747060729325,0.02907999,103160.0,103150.0,0.64913535]
[1747060729531,0.21326075,103160.0,103150.0,0.34]
[1747060729743,0.01938716,103160.0,103150.0,0.96297519]
[1747060729977,0.21326028,103160.0,103150.0,0.95328114]
[1747060730208,0.01938612,103160.0,103150.0,0.9629751]
[1747060730480,0.02907961,103160.0,103150.0,0.9629751]
[1747060730703,0.038773,103160.0,103150.0,0.9629751]
[1747060730943,0.01938612,103160.0,103150.0,0.8629751]
[1747060731172,0.19394603,103190.0,103170.0,0.1938548]
[1747060731377,0.23260094,103180.0,103170.0,0.68276526]
[1747060731583,0.24229274,103180.0,103170.0,0.22293207]
[1747060731786,0.20351084,103190.0,103180.0,0.20352771]
[1747060731987,0.2132016,103190.0,103180.0,0.19383601]
[1747060732171,0.20352752,103180.0,103170.0,0.1938548]
[1747060732326,0.01938321,103180.0,103170.0,0.22293188]
[1747060732579,0.01369142,103180.0,103170.0,0.22393188]
[1747060732780,0.02338303,103180.0,103170.0,0.22293188]
[1747060733350,0.03307436,103180.0,103170.0,0.62293188]
[1747060733533,0.03307378,103180.0,103170.0,0.62293188]
[1747060733777,0.02338218,103180.0,103170.0,2.12614464]
[1747060734002,0.0330736,103180.0,103170.0,1.52831164]
[1747060734218,0.0330736,103180.0,103170.0,1.05878618]
[1747060734432,0.21721913,103180.0,103170.0,0.8358543]
[1747060734643,0.21921913,103180.0,103170.0,0.34]
[1747060735065,0.20354735,103170.0,103160.0,0.0148926]
[1747060735289,0.20356708,103160.0,103150.0,0.4]
[1747060735493,0.1938548,103170.0,103150.0,0.42908272]
[1747060735698,0.23264687,103160.0,103150.0,0.61328123]
[1747060735904,0.24234054,103160.0,103150.0,0.62297547]
[1747060736106,0.01938594,103160.0,103150.0,1.06852307]
[1747060736313,0.03877263,103160.0,103150.0,1.05882921]
[1747060736535,0.01938594,103160.0,103150.0,1.05882921]
[1747060736788,0.002,103170.0,103160.0,0.56295349]
[1747060737004,0.002,103170.0,103160.0,1.12833325]
[1747060737213,0.00969104,103180.0,103170.0,0.54354744]
[1747060737214,0.22291076,103180.0,103170.0,0.54354744]
[1747060737424,0.20350872,103190.0,103180.0,0.21321932]
[1747060737649,0.00969039,103190.0,103180.0,0.22291055]
[1747060737915,0.0631,103210.0,103190.0,0.0193803]
[1747060738130,0.07108701,103230.0,103210.0,0.02906553]
[1747060738382,0.07108701,103230.0,103220.0,0.01937561]
[1747060738383,0.01848712,103230.0,103220.0,0.01937561]
[1747060738585,0.01848712,103230.0,103210.0,0.31868282]
[1747060738586,0.03874953,103220.0,103210.0,0.31868282]
[1747060738791,0.04843804,103220.0,103210.0,0.78820828]
[1747060739001,0.23251164,103220.0,103210.0,0.30899488]
[1747060739214,0.22282426,103220.0,103210.0,0.31868385]
[1747060739426,0.22282426,103220.0,103210.0,0.30901174]
[1747060739634,0.01937477,103220.0,103210.0,0.31869977]
[1747060739844,0.02137468,103220.0,103210.0,0.31969977]
[1747060740103,0.23451118,103220.0,103210.0,0.29063397]
[1747060740325,0.2151365,103220.0,103210.0,0.30032285]
[1747060740533,0.21513593,103220.0,103210.0,0.32489918]
[1747060740736,0.2151364,103220.0,103210.0,0.32489928]
[1747060740942,0.22682388,103220.0,103210.0,0.32489928]
[1747060741151,0.02337504,103220.0,103210.0,0.3345875]
[1747060741360,0.004,103220.0,103210.0,1.14411296]
[1747060741571,0.01347642,103220.0,103210.0,1.14411296]
[1747060741784,0.00378913,103220.0,103210.0,1.71572785]
[1747060741998,0.00378913,103220.0,103210.0,2.79554885]
[1747060742207,0.2131271,103260.0,103250.0,0.00968523]
[1747060742421,0.23772792,103270.0,103260.0,0.20336975]
[1747060742422,0.05361471,103270.0,103260.0,0.20336975]
[1747060742642,0.06329703,103270.0,103260.0,0.6825794]
[1747060742857,0.04393192,103270.0,103260.0,1.12811733]
[1747060743297,0.05361461,103270.0,103260.0,1.58718233]
[1747060743519,0.04393192,103270.0,103260.0,1.64948233]
[1747060743757,0.2186553,103280.0,103270.0,0.34]
[1747060743964,0.23802003,103280.0,103270.0,0.63920473]
[1747060744194,0.22833771,103280.0,103270.0,0.65857077]
[1747060744395,0.0153254,103280.0,103270.0,3.81499292]
[1747060744603,0.0153254,103280.0,103270.0,1.75435292]
[1747060744808,0.02500706,103280.0,103270.0,1.75435292]
[1747060745010,0.0153254,103280.0,103270.0,1.68848792]
[1747060745220,0.0173254,103280.0,103270.0,1.68848792]
[1747060745442,0.02700716,103280.0,103270.0,1.65678792]
[1747060745651,0.02500706,103280.0,103270.0,1.37705292]
[1747060745864,0.0183254,103280.0,103270.0,1.30852746]
[1747060746070,0.0183254,103280.0,103270.0,1.81065292]
[1747060746542,0.03334936,103290.0,103280.0,1.11196076]
[1747060746766,0.03334936,103290.0,103280.0,4.6362091]
[1747060747198,0.03334936,103290.0,103280.0,3.7685241]
[1747060747405,0.03334936,103290.0,103280.0,4.1685241]
[1747060747658,0.03434936,103290.0,103280.0,4.19413292]
[1747060748104,0.00100069,103300.0,103290.0,1.11990716]
[1747060748326,0.01934937,103360.0,103350.0,0.01935142]
[1747060748540,0.212848,103360.0,103340.0,0.63222489]
[1747060748746,0.01935067,103350.0,103340.0,0.62254885]
[1747060748951,0.02902596,103350.0,103340.0,0.62254885]
[1747060749376,0.23221889,103350.0,103340.0,0.61287272]
[1747060749602,0.23221889,103350.0,103340.0,0.63222527]
[1747060749879,0.2225437,103350.0,103340.0,0.6031963]
[1747060750144,0.22254257,103350.0,103340.0,0.4]
[1747060750394,0.02902635,103350.0,103340.0,0.61288902]
[1747060750647,0.22254352,103350.0,103340.0,0.6032126]
[1747060750875,0.21286823,103350.0,103340.0,0.62256571]
[1747060751043,0.21286823,103350.0,103340.0,0.63224213]
[1747060751250,0.21286823,103350.0,103340.0,0.64191836]
[1747060751464,0.02835106,103350.0,103340.0,0.23424213]
[1747060751683,0.23154399,103350.0,103340.0,0.01670374]
[1747060751896,0.23154399,103350.0,103340.0,0.21991643]
[1747060752101,0.2218686,103350.0,103340.0,0.002]
[1747060752310,0.3811229,103350.0,103340.0,0.002]
[1747060752724,0.38103453,103350.0,103340.0,0.002]
[1747060753155,0.21219293,103350.0,103340.0,0.002]
[1747060753293,0.22186841,103350.0,103340.0,0.2148892]
[1747060753506,0.22186841,103350.0,103340.0,0.21488902]
[1747060753720,0.009,103350.0,103340.0,1.11196465]
[1747060753947,0.009,103350.0,103340.0,1.20781895]
[1747060754175,0.009,103350.0,103340.0,0.73829349]
[1747060754388,0.004,103350.0,103340.0,0.73729349]
[1747060754593,0.01367529,103350.0,103340.0,1.25355049]
[1747060754795,0.03602578,103350.0,103340.0,0.85907849]
[1747060755004,0.03202569,103350.0,103340.0,1.25807849]
[1747060755235,0.0290255,103350.0,103340.0,1.25807849]
[1747060755444,0.00967417,103360.0,103350.0,0.56254361]
[1747060755649,0.2225218,103360.0,103350.0,0.55286841]
[1747060755865,0.21284763,103360.0,103350.0,0.54319284]
[1747060756067,0.21284763,103360.0,103350.0,0.55286841]
[1747060756267,0.00967445,103360.0,103350.0,0.56254389]
[1747060756473,0.01934862,103360.0,103350.0,0.57221909]
[1747060756692,0.02902326,103360.0,103350.0,0.57221909]
[1747060756903,0.03869798,103360.0,103350.0,0.57221909]
[1747060757121,0.21284781,103360.0,103350.0,0.34]
[1747060757329,0.21284781,103360.0,103350.0,0.54319302]
[1747060757536,0.20717327,103360.0,103350.0,0.34]
[1747060757767,0.01367454,103360.0,103350.0,0.57221946]
[1747060757991,0.01367454,103360.0,103350.0,0.22254445]
[1747060757992,0.23819699,103360.0,103350.0,0.22254445]
[1747060758189,0.03502353,103360.0,103350.0,0.24189513]
[1747060758411,0.04469835,103360.0,103350.0,0.24189513]
[1747060758621,0.24787172,103360.0,103350.0,0.24189513]
[1747060758837,0.01567426,103360.0,103350.0,0.24189513]
[1747060759102,0.02534871,103360.0,103350.0,0.71142059]
[1747060759324,0.01567426,103360.0,103350.0,1.59374169]
[1747060759541,0.01567426,103360.0,103350.0,1.73721969]
[1747060759542,0.02534899,103360.0,103350.0,1.73721969]
[1747060759754,0.02534871,103360.0,103350.0,1.72127569]
[1747060759961,0.02534871,103360.0,103350.0,1.35518788]
[1747060759962,0.24787144,103360.0,103350.0,1.35518788]
[1747060760171,0.04469807,103360.0,103350.0,1.35518732]
[1747060760387,0.22852254,103360.0,103350.0,0.89029702]
[1747060760612,0.218848,103360.0,103350.0,0.60319302]
[1747060760817,0.218848,103360.0,103350.0,0.61286869]
[1747060761029,0.218848,103360.0,103350.0,0.60319302]
[1747060761240,0.218848,103360.0,103350.0,0.62254435]
[1747060761446,0.218848,103360.0,103350.0,0.61286878]
[1747060761671,0.218848,103360.0,103350.0,0.63221993]
[1747060762084,0.218848,103360.0,103350.0,0.63222002]
[1747060762874,0.01567473,103360.0,103350.0,0.63222002]
[1747060763101,0.01567426,103360.0,103350.0,1.41824341]
[1747060763499,0.03502326,103360.0,103350.0,1.41824341]
[1747060763721,0.006,103360.0,103350.0,1.51409771]
[1747060764430,0.006,103360.0,103350.0,2.31198627]
[1747060764661,0.02406809,103380.0,103370.0,0.56250056]
[1747060764890,0.02406809,103380.0,103370.0,3.22060042]
[1747060765138,0.02406809,103380.0,103370.0,2.34210342]
[1747060765387,0.02406809,103380.0,103370.0,1.29111342]
[1747060765388,0.0153854,103380.0,103370.0,1.29111342]
[1747060765616,0.0153854,103380.0,103370.0,1.69111342]
[1747060765839,0.0153854,103380.0,103370.0,1.72371342]
[1747060766297,0.0153854,103380.0,103370.0,1.73825427]
[1747060766517,0.0153854,103380.0,103370.0,1.72371342]
[1747060768833,0.01933346,103440.0,103430.0,0.21268661]
[1747060769045,0.01933346,103440.0,103430.0,0.20301908]
[1747060769046,0.23201666,103440.0,103430.0,0.20301908]
[1747060769264,0.2126832,103440.0,103420.0,0.60374948]
[1747060769480,0.0193344,103440.0,103430.0,0.21270414]
[1747060769699,0.01933534,103430.0,103420.0,0.5175612]
[1747060769924,0.23203891,103430.0,103420.0,1.35341897]
[1747060770158,0.21270357,103430.0,103420.0,0.74]
[1747060770674,0.21270357,103430.0,103420.0,0.75394582]
[1747060770893,0.22145556,103430.0,103420.0,0.75394582]
[1747060771124,0.22145556,103430.0,103420.0,1.37352057]
[1747060771450,0.22245556,103430.0,103420.0,1.31638243]
[1747060771666,0.21278766,103430.0,103420.0,0.84980012]
[1747060772328,0.20311948,103430.0,103420.0,0.75394582]
[1747060773719,0.20311948,103430.0,103420.0,1.22052813]
[1747060773926,0.20311948,103430.0,103420.0,0.41394582]
[1747060774369,0.19340489,103410.0,103390.0,0.3454]
[1747060774585,0.21276547,103400.0,103390.0,0.64436871]
[1747060774791,0.21276547,103400.0,103390.0,1.31742428]
[1747060774992,0.21276547,103400.0,103390.0,1.57322428]
[1747060775234,0.21276547,103400.0,103390.0,1.58289592]
[1747060775448,0.21276566,103400.0,103390.0,1.3507663]
[1747060775655,0.21276566,103400.0,103390.0,0.60311441]
[1747060775872,0.21276566,103400.0,103390.0,0.4]
[1747060776091,0.21276566,103400.0,103390.0,0.74]
[1747060776308,0.00966987,103410.0,103400.0,0.35934142]
[1747060776518,0.21274509,103410.0,103400.0,0.54309458]
[1747060776725,0.20307513,103410.0,103400.0,0.53342359]
[1747060776946,0.20307513,103410.0,103400.0,0.55276575]
[1747060777156,0.01933926,103410.0,103400.0,1.21241772]
[1747060777362,0.00966865,103420.0,103410.0,0.2320839]
[1747060777565,0.1933488,103440.0,103420.0,0.56239325]
[1747060777772,0.22237195,103430.0,103420.0,0.55272461]
[1747060777979,0.22237214,103430.0,103420.0,0.5527247]
[1747060778280,0.00966753,103430.0,103420.0,1.20270298]
[1747060778372,0.03867143,103430.0,103420.0,1.20270298]
[1747060778583,0.04746659,103430.0,103420.0,1.20270298]
[1747060778810,0.22149836,103430.0,103420.0,0.34]
[1747060779025,0.19340489,103410.0,103400.0,0.95665763]
[1747060779246,0.20307494,103410.0,103400.0,0.71682301]
[1747060779463,0.22243599,103400.0,103390.0,0.2262734]
[1747060779712,0.21186954,103410.0,103400.0,0.19342359]
[1747060779930,0.0193416,103400.0,103390.0,1.19838099]
[1747060780141,0.03868302,103400.0,103390.0,1.36151269]
[1747060780390,0.23210633,103400.0,103390.0,1.35184123]
[1747060780609,0.02901287,103400.0,103390.0,1.24623006]
[1747060780838,0.02901287,103400.0,103390.0,1.72348383]
[1747060781062,0.22243646,103400.0,103390.0,1.23755851]
[1747060781291,0.01934179,103400.0,103390.0,1.25790171]
[1747060781514,0.22241477,103410.0,103400.0,0.54309476]
[1747060781739,0.21274509,103410.0,103400.0,0.34967117]
[1747060781959,0.20307513,103410.0,103400.0,0.34]
[1747060782399,0.20307513,103410.0,103400.0,0.54309476]
[1747060782615,0.21187595,103410.0,103400.0,0.34967117]
[1747060782828,0.22254572,103410.0,103400.0,0.55276584]
[1747060783264,0.22254572,103410.0,103400.0,0.56243664]
[1747060783491,0.22254591,103410.0,103400.0,0.41787404]
[1747060783909,0.22354591,103410.0,103400.0,0.41787404]
[1747060784129,0.22354591,103410.0,103400.0,0.40090028]
[1747060784359,0.22354591,103410.0,103400.0,0.32302624]
[1747060784589,0.01934375,103390.0,103380.0,0.68917505]
[1747060784814,0.21278605,103390.0,103380.0,1.39034797]
[1747060785032,0.21278605,103390.0,103380.0,1.40967967]
[1747060785257,0.00967089,103400.0,103390.0,0.20311422]
[1747060785475,0.02047059,103410.0,103400.0,0.21276565]
[1747060785684,0.20407466,103410.0,103400.0,0.00967117]
[1747060785935,0.01934132,103400.0,103390.0,0.77522211]
[1747060786162,0.02901231,103400.0,103390.0,2.37314311]
[1747060786389,0.21374415,103410.0,103400.0,0.55276547]
[1747060786611,0.23123021,103410.0,103400.0,0.34]
[1747060786841,0.22256072,103410.0,103400.0,0.34]
[1747060787065,0.20309458,103400.0,103390.0,0.4]
[1747060787287,0.21276547,103400.0,103390.0,1.09181141]
[1747060787678,0.21374509,103410.0,103400.0,0.21276565]
[1747060787679,0.03000922,103410.0,103400.0,0.57210697]
[1747060787895,0.2147449,103410.0,103400.0,0.55276584]
[1747060788106,0.2147449,103410.0,103400.0,0.6499812]
[1747060788311,0.02034001,103410.0,103400.0,0.63063988]
[1747060788545,0.23223759,103410.0,103400.0,0.91745388]
[1747060788766,0.22156763,103410.0,103400.0,0.41787404]
[1747060788977,0.22156763,103410.0,103400.0,0.34]
[1747060789824,0.20309458,103400.0,103390.0,1.08636]
[1747060790065,0.21191703,103400.0,103390.0,1.08536]
[1747060790279,0.21191703,103400.0,103390.0,0.68536]
[1747060791136,0.22158792,103400.0,103390.0,0.68536]
[1747060791371,0.21191703,103400.0,103390.0,0.88947432]
[1747060791600,0.21191703,103400.0,103390.0,0.8798023]
[1747060791810,0.20224604,103400.0,103390.0,0.8798023]
[1747060792246,0.20224604,103400.0,103390.0,0.68636]
[1747060792685,0.20224604,103400.0,103390.0,0.8798023]
[1747060793101,0.22158774,103400.0,103390.0,1.66352806]
[1747060793311,0.22158774,103400.0,103390.0,1.4424731]
[1747060793312,0.23125882,103400.0,103390.0,1.4424731]
[1747060793584,0.22158811,103400.0,103390.0,0.98632871]
[1747060793793,0.22158829,103400.0,103390.0,0.68736]
[1747060795068,0.22158829,103400.0,103390.0,0.342]
[1747060795283,0.38024259,103400.0,103390.0,0.001]
[1747060795504,0.20311422,103390.0,103380.0,0.0139017]
[1747060795733,0.1934423,103390.0,103360.0,1.07684666]
[1747060795944,0.02901811,103380.0,103370.0,0.57217425]
[1747060796168,0.0096722,103380.0,103370.0,0.57584528]
[1747060796391,0.22160831,103390.0,103380.0,0.55280683]
[1747060796597,0.00882245,103390.0,103380.0,2.60928918]
[1747060796809,0.00982245,103390.0,103380.0,2.60928918]
[1747060797049,0.03016565,103390.0,103380.0,2.67328918]
[1747060797273,0.03016565,103390.0,103380.0,2.54857618]
[1747060797274,0.01167146,103390.0,103380.0,2.54857618]
[1747060797523,0.0213432,103390.0,103380.0,2.89405518]
[1747060797746,0.22345752,103390.0,103380.0,1.56210488]
[1747060797971,0.01067146,103390.0,103380.0,1.69323527]
[1747060798185,0.001,103390.0,103380.0,1.72813527]
[1747060798404,0.001,103390.0,103380.0,1.76053527]
[1747060798631,0.01934141,103400.0,103390.0,0.22245752]
[1747060798835,0.03868282,103400.0,103390.0,2.63037286]
[1747060799080,0.01934076,103400.0,103390.0,2.63037286]
[1747060799293,0.02901147,103400.0,103390.0,2.63037286]
[1747060799502,0.04835298,103400.0,103390.0,3.03037286]
[1747060799715,0.04835298,103400.0,103390.0,1.11619364]
[1747060799716,0.21276529,103400.0,103390.0,1.11619364]
[1747060799946,0.21276529,103400.0,103390.0,0.69996871]
[1747060800171,0.19340489,103410.0,103400.0,0.54309476]
[1747060800392,0.19340489,103410.0,103400.0,0.34967117]
[1747060800600,0.19340489,103410.0,103400.0,0.55276575]
[1747060800814,0.19340489,103410.0,103400.0,0.34]
[1747060801024,0.19340489,103410.0,103400.0,0.53342359]
[1747060801272,0.19440489,103410.0,103400.0,0.54309458]
[1747060801487,0.001,103410.0,103400.0,1.50294128]
[1747060801696,0.02033926,103410.0,103400.0,3.09578528]
[1747060801914,0.03000904,103410.0,103400.0,3.15718528]
[1747060802132,0.002,103410.0,103400.0,3.15718528]
[1747060802999,0.001,103410.0,103400.0,3.15718528]
[1747060803215,0.001,103410.0,103400.0,3.60062317]
[1747060803429,0.001,103410.0,103400.0,3.17472613]
[1747060803643,0.0193374,103420.0,103410.0,0.2224145]
[1747060803892,0.02900652,103420.0,103410.0,0.85157525]
[1747060804110,0.02900652,103420.0,103410.0,0.86124484]
[1747060804328,0.20306382,103440.0,103430.0,0.20303567]
[1747060804544,0.231229,103440.0,103430.0,0.97860071]
[1747060804759,0.01854608,103440.0,103430.0,1.08412273]
[1747060805003,0.05721433,103440.0,103430.0,2.25536073]
[1747060805219,0.24089569,103440.0,103430.0,2.64569301]
[1747060805462,0.22235036,103440.0,103430.0,1.76155929]
[1747060805678,0.21268339,103440.0,103430.0,0.8358543]
[1747060805891,0.21268339,103440.0,103430.0,1.03888997]
[1747060806105,0.21468339,103440.0,103430.0,1.03889007]
[1747060806975,0.21468339,103440.0,103430.0,0.8358543]
[1747060807185,0.20701624,103440.0,103430.0,1.03889007]
[1747060807403,0.20701624,103440.0,103430.0,0.8358543]
[1747060807628,0.20701624,103440.0,103430.0,0.74]
[1747060808729,0.20701624,103440.0,103430.0,0.34]
[1747060811168,0.20307476,103410.0,103400.0,0.09202696]
[1747060811382,0.19340025,103430.0,103420.0,0.07787404]
[1747060812720,0.1933379,103450.0,103430.0,0.20303539]
[1747060812931,0.20301577,103440.0,103430.0,0.54303586]
[1747060813155,0.20301614,103440.0,103430.0,0.34]
[1747060814249,0.20301614,103440.0,103430.0,0.53336749]
[1747060814475,0.20301614,103440.0,103430.0,0.34]
[1747060815117,0.20701614,103440.0,103430.0,0.34]
[1747060816008,0.20701614,103440.0,103430.0,0.53336749]
[1747060816225,0.20701614,103440.0,103430.0,0.55270395]
[1747060816449,0.2263498,103440.0,103430.0,0.86037706]
[1747060816738,0.22635017,103440.0,103430.0,0.65822634]
[1747060816957,0.20701614,103440.0,103430.0,0.62922179]
[1747060817191,0.1973488,103440.0,103430.0,0.34]
[1747060818739,0.01366659,103440.0,103430.0,0.9882688]
[1747060818969,0.03300091,103440.0,103430.0,0.97860099]
[1747060819206,0.03300091,103440.0,103430.0,0.57203967]
[1747060819414,0.21668302,103440.0,103430.0,0.63889016]
[1747060819630,0.21668302,103440.0,103430.0,0.64855834]
[1747060819854,0.21668302,103440.0,103430.0,0.4358543]
[1747060819855,0.1973488,103440.0,103430.0,0.4358543]
[1747060820074,0.1973488,103440.0,103430.0,0.63889016]
[1747060820295,0.1973488,103440.0,103430.0,0.64855844]
[1747060820978,0.1973488,103440.0,103430.0,0.34]
[1747060822154,0.19336749,103430.0,103400.0,0.20754519]
[1747060822379,0.01933908,103410.0,103400.0,0.34831398]
[1747060822607,0.01933908,103410.0,103400.0,0.94097128]
[1747060822807,0.01933908,103410.0,103400.0,1.37197128]
[1747060823043,0.02900866,103410.0,103400.0,2.13786832]
[1747060823229,0.02900866,103410.0,103400.0,2.10686832]
[1747060823816,0.23208435,103410.0,103400.0,0.95973269]
[1747060824034,0.22241486,103410.0,103400.0,1.15028658]
[1747060824256,0.21274509,103410.0,103400.0,0.93755243]
[1747060824488,0.20307513,103410.0,103400.0,0.11000722]
[1747060824711,0.23497513,103410.0,103400.0,0.003]
[1747060824941,0.33082943,103410.0,103400.0,0.003]
[1747060825163,0.33082943,103410.0,103400.0,0.006]
[1747060826057,0.33082943,103410.0,103400.0,0.003]
[1747060826318,0.36272943,103410.0,103400.0,0.003]
[1747060826548,0.37727028,103410.0,103400.0,0.003]
[1747060826776,0.20309458,103400.0,103390.0,0.00020525]
[1747060827218,0.21276547,103400.0,103390.0,0.00020525]
[1747060827658,0.33881977,103400.0,103390.0,0.00020525]
[1747060827877,0.21276547,103400.0,103390.0,0.00020525]
[1747060828097,0.21376547,103400.0,103390.0,0.00020525]
[1747060828335,0.21576547,103400.0,103390.0,0.00020525]
[1747060828759,0.21576547,103400.0,103390.0,0.09605955]
[1747060828979,0.20609458,103400.0,103390.0,0.09605955]
[1747060830094,0.20609458,103400.0,103390.0,0.00020525]
[1747060832278,0.21576519,103400.0,103390.0,0.29917387]
[1747060832501,0.22543627,103400.0,103390.0,0.29917387]
[1747060832717,0.21576556,103400.0,103390.0,0.00020525]
[1747060833841,0.2194469,103400.0,103390.0,0.00020525]
[1747060834065,0.21576556,103400.0,103390.0,0.00020525]
[1747060834286,0.22092003,103400.0,103390.0,0.00020525]
[1747060835326,0.23059064,103400.0,103390.0,0.10573166]
[1747060835543,0.22092003,103400.0,103390.0,0.29917396]
[1747060835802,0.00815447,103400.0,103390.0,0.73474283]
[1747060836010,0.00815447,103400.0,103390.0,2.61182903]
[1747060836218,0.0178249,103400.0,103390.0,2.61182902]
[1747060836473,0.23663831,103460.0,103390.0,1.45378288]
[1747060836698,0.02900061,103440.0,103430.0,0.56237185]
[1747060836930,0.02900061,103440.0,103430.0,0.58170738]
[1747060836931,0.03866768,103440.0,103430.0,0.58170738]
[1747060837140,0.02900043,103440.0,103430.0,0.58170738]
[1747060837361,0.02900061,103440.0,103430.0,0.58170738]
[1747060837576,0.01933234,103450.0,103440.0,0.5526832]
[1747060837822,0.00966603,103450.0,103440.0,0.5526832]
[1747060838057,0.2223282,103450.0,103440.0,0.56235017]
[1747060838284,0.2319947,103450.0,103440.0,0.56235017]
[1747060838503,0.2223282,103450.0,103440.0,0.5526832]
[1747060838734,0.21266245,103450.0,103440.0,0.34]
[1747060838971,0.21266245,103450.0,103440.0,0.54301605]
[1747060839212,0.002,103450.0,103440.0,4.00036123]
[1747060839431,0.002,103450.0,103440.0,2.92962823]
[1747060839920,0.00679648,103450.0,103440.0,3.26594823]
[1747060840150,0.01646214,103450.0,103440.0,3.26594823]
[1747060840388,0.00770815,103450.0,103440.0,3.26594823]
[1747060840599,0.01546214,103450.0,103440.0,1.83951523]
[1747060840810,0.01446214,103450.0,103440.0,1.86748877]
[1747060841013,0.02412789,103450.0,103440.0,1.87248877]
[1747060841224,0.01446214,103450.0,103440.0,2.27648877]
[1747060841439,0.01446214,103450.0,103440.0,1.56871573]
[1747060841440,0.02412808,103450.0,103440.0,1.56871573]
[1747060841669,0.02412789,103450.0,103440.0,1.56871573]
[1747060842127,0.03379402,103450.0,103440.0,1.56871573]
[1747060842336,0.01446214,103450.0,103440.0,1.57937573]
[1747060842550,0.03379392,103450.0,103440.0,1.57937573]
[1747060842762,0.03379374,103450.0,103440.0,2.00527277]
[1747060842972,0.02412789,103450.0,103440.0,2.00527277]
[1747060843186,0.03379392,103450.0,103440.0,1.99491077]
[1747060843406,0.03379392,103450.0,103440.0,1.67482073]
[1747060843612,0.03379392,103450.0,103440.0,1.79732973]
[1747060843820,0.02412789,103450.0,103440.0,1.61817473]
[1747060844035,0.03379392,103450.0,103440.0,1.61817473]
[1747060844258,0.03379383,103450.0,103440.0,1.61817473]
[1747060844468,0.04345996,103450.0,103440.0,1.61817473]
[1747060844694,0.03379383,103450.0,103440.0,1.61817473]
[1747060844896,0.03379383,103450.0,103440.0,2.04407177]
[1747060845113,0.23679007,103450.0,103440.0,0.93175054]
[1747060845319,0.2077929,103450.0,103440.0,0.37697354]
[1747060845755,0.2077929,103450.0,103440.0,0.009]
[1747060846172,0.2077929,103450.0,103440.0,0.005]
[1747060846381,0.00479648,103450.0,103440.0,0.1134947]
[1747060846597,0.2223282,103450.0,103440.0,0.2323236]
[1747060846821,0.00966575,103450.0,103440.0,0.82779228]
[1747060847043,0.03388921,103450.0,103440.0,0.67801028]
[1747060847297,0.03388921,103450.0,103440.0,0.68101028]
[1747060847505,0.22722007,103450.0,103440.0,0.29887044]
[1747060847714,0.0242229,103450.0,103440.0,0.70015459]
[1747060847917,0.04355562,103450.0,103440.0,0.93128547]
[1747060848132,0.04355562,103450.0,103440.0,0.97806091]
[1747060848340,0.21755395,103450.0,103440.0,0.01527544]
[1747060848571,0.20788764,103450.0,103440.0,0.01527544]
[1747060848988,0.20788764,103450.0,103440.0,0.001]
[1747060854173,0.33684194,103450.0,103440.0,0.001]
[1747060854329,0.38438279,103450.0,103440.0,0.001]
[1747060854535,0.20301605,103440.0,103430.0,0.35272125]
[1747060855065,0.20881537,103440.0,103430.0,0.35272125]
[1747060856037,0.20881537,103440.0,103430.0,0.58476083]
[1747060856038,0.01546619,103440.0,103430.0,0.58476083]
[1747060856250,0.03479975,103440.0,103430.0,0.58476083]
[1747060856466,0.00579932,103440.0,103430.0,0.58476083]
[1747060856697,0.02513316,103440.0,103430.0,0.74541513]
[1747060856934,0.02900109,103440.0,103430.0,0.74541513]
[1747060857217,0.23777487,103440.0,103430.0,0.67194741]
[1747060857455,0.24744231,103440.0,103430.0,0.68161513]
[1747060857687,0.22810847,103440.0,103430.0,0.97609311]
[1747060857892,0.22810847,103440.0,103430.0,0.98576101]
[1747060858099,0.03475967,103440.0,103430.0,0.99542882]
[1747060858305,0.22810847,103440.0,103430.0,0.75372125]
[1747060858514,0.21844122,103440.0,103430.0,0.95675711]
[1747060858730,0.20877388,103440.0,103430.0,0.75372125]
[1747060858945,0.20877388,103440.0,103430.0,0.01372125]
[1747060861954,0.24017388,103440.0,103430.0,0.001]
[1747060863024,0.20877388,103440.0,103430.0,0.001]
[1747060863437,0.20857388,103440.0,103430.0,0.001]
[1747060865423,0.23917388,103440.0,103430.0,0.001]
[1747060865697,0.23932852,103440.0,103430.0,0.001]
[1747060867957,0.20872852,103440.0,103430.0,0.001]
[1747060868170,0.37018282,103440.0,103430.0,0.001]
[1747060869064,0.30458282,103440.0,103430.0,0.001]
[1747060869287,0.20872852,103440.0,103430.0,0.001]
[1747060870750,0.38042367,103440.0,103430.0,0.001]
[1747060870989,0.30458282,103440.0,103430.0,0.001]
[1747060871230,0.33608282,103440.0,103430.0,0.001]
[1747060871465,0.34497853,103440.0,103430.0,0.001]
[1747060872158,0.33608282,103440.0,103430.0,0.001]
[1747060872398,0.38302367,103440.0,103430.0,0.001]
[1747060873502,0.38302367,103440.0,103420.0,0.00020518]
[1747060873503,0.21757652,103430.0,103420.0,0.00020518]
[1747060873717,0.37663082,103430.0,103420.0,0.00020518]
[1747060873935,0.38211662,103430.0,103420.0,0.00020518]
[1747060874564,0.81691004,103430.0,103420.0,0.00020518]
[1747060874773,0.82975682,103430.0,103420.0,0.00020518]
[1747060875183,0.391013,103430.0,103420.0,0.00020518]
[1747060875625,0.393013,103430.0,103420.0,0.00020518]
[1747060876428,0.82891004,103430.0,103420.0,0.00020518]
[1747060876866,1.16891004,103430.0,103420.0,0.00020518]
[1747060877533,1.16691004,103430.0,103420.0,0.00020518]
[1747060877746,1.18172727,103430.0,103420.0,0.00020518]
[1747060878007,1.17172727,103430.0,103420.0,0.00020518]
[1747060878226,0.21278586,103390.0,103380.0,0.09063456]
[1747060878412,0.32318101,103390.0,103380.0,0.09063456]
[1747060878911,0.314052,103390.0,103380.0,0.09063456]
[1747060880343,0.314052,103390.0,103380.0,0.09163456]
[1747060881656,0.2181977,103390.0,103380.0,0.09163456]
[1747060881875,0.2181977,103390.0,103380.0,0.09263456]
[1747060882289,0.2181977,103390.0,103380.0,0.29576852]
[1747060882668,0.20852606,103390.0,103380.0,0.35916843]
[1747060882876,0.19885414,103390.0,103380.0,0.34949557]
[1747060883083,0.19885414,103390.0,103380.0,0.16570751]